[Event "CCT Chesscom Classic-D2 2024"]
[Site "Online"]
[Date "2024.05.12"]
[Round "3"]
[White "LevonAronian"]
[Black "Oparin, Grigoriy"]
[Result "1-0"]
[ECO "B30"]
[WhiteElo "2748"]
[BlackElo "2676"]
[Annotator "TA"]
[PlyCount "63"]
[EventDate "2024.05.08"]
[EventType "k.o."]
[EventCountry "NET"]
[SourceTitle "playchess.com"]
[Source "ChessBase"]
[SourceQuality "1"]
[TimeControl "600+2"]

{[%evp 9,63,18,24,12,21,14,25,-6,22,-4,36,21,62,26,76,81,75,65,67,51,50,47,42,46,86,50,46,43,119,34,97,92,98,98,98,98,98,98,98,98,110,97,99,85,783,773,810,778,791,751,29976,29977,29977,29978,5673,2075]} 1. e4 {[%emt 0:00:18]} c5 {[%emt 0:00:17]} 2. Nf3 {[%emt 0:00:11]} Nc6 {[%emt 0:00:02]} 3. Bb5 {[%emt 0:00:04]} e5 {[%emt 0:00:01]} 4. O-O {[%emt 0:00:04]} Bd6 {[%emt 0:00:01]} 5. d3 {[%emt 0:00:14]} Nf6 {[%emt 0:00:02]} 6. Be3 {[%emt 0:00:05]} a6 {[%emt 0:00:21]} 7. Bxc6 {[%emt 0:00:18]} dxc6 {[%emt 0:00:02]} 8. Nbd2 {[%emt 0:00:04] White has an edge.} Be6 {[%emt 0:01:20]} 9. b3 {[%emt 0:00:54]} Nd7 {[%emt 0:01:11]} 10. Ng5 {[%emt 0:00:17] Strongly threatening Nxe6.} Qe7 {[%emt 0:00:01]} 11. Qh5 {[%emt 0:00:19][%cal Og5e6]} (11. Nxe6 {simplifies} Qxe6 12. a4 b6 13. h3) 11... h6 {[%emt 0:01:39]} (11... Nf6 $11 {keeps the balance.} 12. Qh4 Ng4) 12. Nxe6 $16 {[%emt 0:00:15]} Qxe6 {[%emt 0:00:01]} 13. Nc4 {[%emt 0:00:04]} Bc7 {[%emt 0:02:02]} 14. f4 {[%emt 0:00:03] White has more active pieces.} exf4 {[%emt 0:00:01]} 15. Bxf4 {[%emt 0:00:02]} (15. Bxc5 $2 {loses.} g6 16. Qf3 Nxc5 $19) 15... Bxf4 {[%emt 0:00:00]} 16. Rxf4 {[%emt 0:00:01][%cal Oh5f7]} b5 {[%emt 0:00:01]} 17. Ne3 {[%emt 0:00:35]} g6 {[%emt 0:00:26]} 18. Qf3 {[%emt 0:00:29]} f6 {[%emt 0:00:33]} (18... h5 $14) 19. Rf1 {[%emt 0:00:27]} ({White should try} 19. Qg3 $16) 19... O-O-O {[%emt 0:00:09]} (19... h5 $1 $14) 20. Ng4 {[%emt 0:00:22][%cal Rg4f6]} h5 {[%emt 0:00:11]} 21. Nxf6 {[%emt 0:00:03]} Ne5 {[%emt 0:00:01]} 22. Qg3 {[%emt 0:00:19]} Kb7 {[%emt 0:00:17]} 23. h3 {[%emt 0:00:05]} Qd6 {[%emt 0:00:06]} 24. Kh1 $36 {[%emt 0:00:11][%mdl 2048] Black is under strong pressure.} Qd4 {[%emt 0:00:33]} 25. Qg5 {[%emt 0:00:14]} Kb6 {[%emt 0:00:12]} 26. a4 {[%emt 0:00:20]} Qd6 {[%emt 0:00:07][%mdl 8192] [#] Loses the game.} (26... Kb7 $16 27. R4f2 Rd6) 27. Nd5+ $1 $18 {[%emt 0:00:15][%mdl 512]} Kb7 {[%emt 0:00:08]} (27... cxd5 28. Rf6) 28. Rf6 {[%emt 0:00:05]} Qb8 {[%emt 0:00:06] [#]} 29. Rf7+ $1 {[%emt 0:00:06][%mdl 512]} Nxf7 {[%emt 0:00:03]} (29... Rd7 30. Rxd7+) 30. Rxf7+ {[%emt 0:00:01]} Ka8 {[%emt 0:00:00]} 31. Nc7+ {[%emt 0:00:08]} Kb7 {[%emt 0:00:01]} 32. Ne6+ {[%emt 0:00:08] Weighted Error Value: White=0.17 (very precise) /Black=0.47.  Loses game:     	---       	Black=1      Mistake:       	White=1     	Black=3      Inaccurate:     	White=4     	Black=4      OK:         	White=4     	Black=5      Best:        	White=1     	---} (32. Nxb5+ $142 Kb6 33. Na3) 1-0

[Event "CCT Chesscom Classic-D2 2024"]
[Site "Online"]
[Date "2024.05.12"]
[Round "3"]
[White "LevonAronian"]
[Black "Oparin, Grigoriy"]
[Result "0-1"]
[ECO "B52"]
[WhiteElo "2744"]
[BlackElo "2676"]
[Annotator "TA"]
[PlyCount "198"]
[EventDate "2024.05.08"]
[EventType "k.o."]
[EventCountry "NET"]
[SourceTitle "playchess.com"]
[Source "ChessBase"]
[SourceQuality "1"]
[TimeControl "600+2"]

{[%evp 9,198,6,25,13,27,16,35,22,31,0,24,25,20,21,35,27,27,29,34,26,43,37,42,32,37,18,20,17,23,14,14,16,15,0,8,0,14,0,8,-9,-14,-27,0,0,0,0,0,0,0,0,0,0,9,39,280,281,306,8,8,8,8,5,6,0,0,-2,6,6,8,0,0,0,0,0,0,0,0,0,0,0,0,0,0,0,0,0,0,0,0,0,0,0,0,0,0,0,0,0,0,0,0,0,0,0,0,0,0,0,0,0,0,0,0,-204,0,0,0,0,0,0,0,0,0,0,0,0,0,-8,0,0,0,0,0,0,0,0,0,0,0,-67,0,0,0,0,0,0,0,0,0,0,0,0,0,0,0,0,0,0,0,-87,-8,-529,-504,-354,-16,-678,-745,-29957,-29960,-29944,-10270,-29967,-29968,-29968,-29968,-29974,-29975,-29972,-29968,-29969,-29970,-29981,-29982,-29982,-29983,-29984,-29985,-29986,-29987,-29987,-29988]} 1. e4 {[%emt 0:00:02]} c5 {[%emt 0:00:02]} 2. Nf3 {[%emt 0:00:01]} d6 {[%emt 0:00:01]} 3. Bb5+ {[%emt 0:00:02]} Bd7 {[%emt 0:00:03]} 4. c4 {[%emt 0:00:02]} Nf6 {[%emt 0:00:11]} 5. Nc3 {[%emt 0:00:02]} g6 {[%emt 0:00:03]} 6. d4 {[%emt 0:00:17]} cxd4 {[%emt 0:00:02]} 7. Nxd4 {[%emt 0:00:01]} Bg7 {[%emt 0:00:04]} 8. Be3 {[%emt 0:00:02] White is slightly better.} O-O {[%emt 0:00:04]} 9. h3 {[%emt 0:00:05] Repels Ng4} a6 {[%emt 0:00:18]} 10. Bxd7 {[%emt 0:00:02]} Nfxd7 {[%emt 0:00:00]} 11. O-O {[%emt 0:00:09]} Nc6 {[%emt 0:00:01]} 12. Rc1 {[%emt 0:00:52]} Rc8 {[%emt 0:00:11]} 13. b3 {[%emt 0:00:02]} Qa5 {[%emt 0:00:35]} 14. Nxc6 {[%emt 0:00:28]} bxc6 {[%emt 0:00:13]} 15. Na4 {[%emt 0:00:06]} c5 {[%emt 0:00:15]} 16. f4 {[%emt 0:02:19]} Nb8 {[%emt 0:00:12][%cal Bd7b8,Bb8c6,Bc6d4][%mdl 32]} 17. Bd2 {[%emt 0:00:23]} (17. e5 {keeps more tension.} dxe5 18. fxe5 Bxe5 19. Qd5) 17... Qd8 {[%emt 0:00:23]} 18. Nc3 {[%emt 0:00:58]} Nc6 {[%emt 0:00:02]} 19. Kh1 {[%emt 0:00:03]} f5 {[%emt 0:00:23]} 20. exf5 {[%emt 0:00:22]} gxf5 {[%emt 0:00:01]} 21. Qe1 {[%emt 0:00:15]} Qd7 {[%emt 0:00:23]} 22. Rf3 {[%emt 0:00:41]} Nd4 {[%emt 0:00:21]} 23. Re3 {[%emt 0:00:02]} Rce8 {[%emt 0:00:06][%cal Bc8e8,Be8e6,Be6g6][%mdl 32]} 24. Qh4 {[%emt 0:00:11]} Kh8 {[%emt 0:00:32]} 25. Ne2 {[%emt 0:00:04]} e5 {[%emt 0:00:16]} 26. Nc3 {[%emt 0:00:03]} Re6 {[%emt 0:01:18]} 27. Nd5 {[%emt 0:00:03]} Rg6 {[%emt 0:00:02]} 28. Qf2 {[%emt 0:00:18]} e4 {[%emt 0:00:18]} 29. Bc3 {[%emt 0:00:12]} Rg8 {[%emt 0:00:09]} 30. Rd1 {[%emt 0:00:05]} Ne6 {[%emt 0:00:24] [#]} 31. g4 $1 {[%emt 0:00:52]} fxg4 {[%emt 0:03:17]} (31... Rf8 $14) (31... Nd4 32. g5) 32. f5 $18 {[%emt 0:00:03]} Qf7 {[%emt 0:00:00]} 33. Rf1 $2 {[%emt 0:00:16]} (33. Rxe4 Bxc3 34. Qf1 Rh6 (34... Ng5 35. Re7 $11) 35. fxe6 (35. Nxc3 $2 Rxh3+ 36. Kg2 Ng5 $19) 35... Qf3+ 36. Qxf3 gxf3 $15) (33. f6 $18 Bf8 34. Ne7 (34. Rxe4 gxh3 35. Ne7 Rg2 $11)) 33... Bxc3 $11 {[%emt 0:00:15]} ({Avoid the trap} 33... g3 $2 34. Qg2 Rg5 (34... Rf8 $2 35. Ree1 $18) 35. Bf6 (35. fxe6 Qxf1+ 36. Qxf1 g2+ $18) 35... Bxf6 36. fxe6 Qxe6 37. Nxf6 $18 (37. Rxf6 Qe5 $18)) 34. fxg6 {[%emt 0:00:56]} Qxf2 {[%emt 0:00:02]} 35. Rxf2 {[%emt 0:00:01]} Bd4 $1 {[%emt 0:00:00] The board is on fire.} 36. Rf7 {[%emt 0:00:09]} Ng5 {[%emt 0:00:15]} 37. Rxe4 {[%emt 0:00:39]} Nxf7 {[%emt 0:00:01]} 38. gxf7 {[%emt 0:00:01][%mdl 4096] Endgame. KRB-KRN} Rf8 {[%emt 0:00:00]} 39. Re8 {[%emt 0:00:03]} (39. hxg4 {simplifies} Rxf7 40. Nf4 a5 41. Ne6) 39... Kg7 {[%emt 0:00:03]} 40. Rxf8 {[%emt 0:00:01]} Kxf8 {[%emt 0:00:01]} 41. hxg4 {[%emt 0:00:01]} (41. Nc7 {feels hotter.} gxh3 42. Nxa6 Be5 43. a3) 41... Kxf7 {[%emt 0:00:02] KB-KN} 42. Kg2 {[%emt 0:00:00]} Ke6 {[%emt 0:00:19]} 43. Kf3 {[%emt 0:00:02]} Ke5 {[%emt 0:00:02]} 44. Ne7 {[%emt 0:00:01]} Bc3 {[%emt 0:00:08]} 45. Nc6+ {[%emt 0:00:08]} Ke6 {[%emt 0:00:01]} 46. Ke4 {[%emt 0:00:01]} Be1 {[%emt 0:00:10]} 47. Nb8 {[%emt 0:00:04]} a5 {[%emt 0:00:01]} 48. Na6 {[%emt 0:00:04]} Bd2 {[%emt 0:00:05]} 49. Nc7+ {[%emt 0:00:02]} Kd7 {[%emt 0:00:01]} 50. Nd5 {[%emt 0:00:01]} Ke6 {[%emt 0:00:00] Dodges Nf6} 51. Nc7+ {[%emt 0:00:04]} Kd7 {[%emt 0:00:01]} 52. Nb5 {[%emt 0:00:01]} Ke6 {[%emt 0:00:01]} 53. Na7 {[%emt 0:00:01]} Be1 {[%emt 0:00:02]} 54. Nc6 {[%emt 0:00:01]} Bc3 {[%emt 0:00:01]} 55. Nd8+ {[%emt 0:00:01]} Ke7 {[%emt 0:00:02]} 56. Nb7 {[%emt 0:00:03]} Ke6 {[%emt 0:00:02]} 57. a3 {[%emt 0:00:04]} Be1 {[%emt 0:00:02]} 58. Nd8+ {[%emt 0:00:01]} Ke7 {[%emt 0:00:01]} 59. Nb7 {[%emt 0:00:01]} Ke6 {[%emt 0:00:00]} 60. a4 {[%emt 0:00:04]} Bd2 {[%emt 0:00:02]} 61. Nd8+ $2 {[%emt 0:00:01]} (61. Kd3 $1 $11 {and White is okay.} Be1 62. Nd8+ Ke5 63. Ke2) 61... Ke7 $2 {[%emt 0:00:01]} (61... Kd7 $19 62. Kd3 Bc1) 62. Nc6+ {[%emt 0:00:03]} (62. Nb7 $5 Ke6 $8 63. Kd3 $11) 62... Ke6 {[%emt 0:00:02]} 63. Na7 {[%emt 0:00:01]} Be1 {[%emt 0:00:05]} 64. Nb5 {[%emt 0:00:01]} Bd2 {[%emt 0:00:02]} 65. Nc7+ {[%emt 0:00:01]} Kd7 {[%emt 0:00:01]} 66. Nd5 {[%emt 0:00:02]} Ke6 {[%emt 0:00:00] Prevents Nf6.} 67. Kd3 {[%emt 0:00:03]} Be1 {[%emt 0:00:03]} 68. Ke2 {[%emt 0:00:00]} Bg3 {[%emt 0:00:06]} 69. Ke3 {[%emt 0:00:05]} Be1 {[%emt 0:00:00]} 70. Nf4+ {[%emt 0:00:03]} Kf6 {[%emt 0:00:05]} 71. Ke4 {[%emt 0:00:01]} Kg5 {[%emt 0:00:03]} 72. Kf3 {[%emt 0:00:01]} Kf6 {[%emt 0:00:00]} 73. Ng2 {[%emt 0:00:03]} Bd2 {[%emt 0:00:04] Hoping for ...Ke5.} 74. Ke2 {[%emt 0:00:04]} (74. Ke4 $11) 74... Bc1 {[%emt 0:00:01]} ({Black should play} 74... Bh6 $1 $15) 75. Ne1 $1 {[%emt 0:00:01]} Kg5 {[%emt 0:00:01]} 76. Kf3 {[%emt 0:00:00]} Bd2 {[%emt 0:00:03]} 77. Nd3 {[%emt 0:00:02] Threatens to win with Nf2.} Kf6 {[%emt 0:00:03]} 78. Ke4 {[%emt 0:00:01]} Kg5 {[%emt 0:00:01]} 79. Kf3 {[%emt 0:00:01]} Kf6 {[%emt 0:00:01]} 80. Ke2 {[%emt 0:00:02]} Bc3 {[%emt 0:00:04]} 81. Nf4 {[%emt 0:00:06] Strongly threatening Nd5+.} Ke5 {[%emt 0:00:05]} 82. Nd5 {[%emt 0:00:00]} Bb2 {[%emt 0:00:01] ...Ke4 would now be deadly.} 83. Kd3 $1 {[%emt 0:00:03]} Bc1 {[%emt 0:00:01] aiming for ...Bg5.} 84. Ke2 {[%emt 0:00:02] [#]} (84. Ne7 $11) 84... Kd4 {[%emt 0:00:03]} (84... Bg5 $1 $17 {And now ...Kd4 would win.} 85. Kd3 h6) 85. Kd1 $2 {[%emt 0:00:01][%mdl 8192]} (85. Ne7 $1 $11 Kc3 86. Nc6 Kxb3 87. Nxa5+ Kxa4 88. Nb7) 85... Bg5 $19 {[%emt 0:00:01]} 86. Ke2 {[%emt 0:00:04]} Bh6 $2 {[%emt 0:00:03]} (86... h6 $19 {...Bh4 is the strong threat.} 87. Ke1 Kd3) 87. Nf6 $2 {[%emt 0:00:05][%mdl 8192]} (87. Ne7 $11 Kc3 88. Nc6 Kxb3 89. Nxa5+ Kb4 (89... Kxa4 90. Nc6 $11) 90. Nb7 Kxc4 91. Nxd6+ Kb4 92. Kd3) 87... Kc3 {[%emt 0:00:02]} 88. g5 {[%emt 0:00:00]} Bxg5 {[%emt 0:00:02]} 89. Ne4+ {[%emt 0:00:01]} Kxb3 {[%emt 0:00:00]} 90. Nxg5 {[%emt 0:00:00]} Kxa4 {[%emt 0:00:02] KN-KP. Black mates.} 91. Kd2 {[%emt 0:00:04]} Kb3 {[%emt 0:00:01]} 92. Ne4 {[%emt 0:00:01]} a4 {[%emt 0:00:03]} 93. Kc1 {[%emt 0:00:01]} a3 {[%emt 0:00:02]} 94. Kb1 {[%emt 0:00:01]} h5 {[%emt 0:00:00]} 95. Nxd6 {[%emt 0:00:01]} h4 {[%emt 0:00:01]} 96. Ne4 {[%emt 0:00:03]} Kxc4 {[%emt 0:00:02]} 97. Ka2 {[%emt 0:00:05]} Kb4 {[%emt 0:00:04]} 98. Ng5 {[%emt 0:00:04]} c4 {[%emt 0:00:01]} 99. Nh3 {[%emt 0:00:02]} c3 {[%emt 0:00:01] Black used his chance.   Weighted Error Value: White=0.13 (very precise) /Black=0.12 (very precise) .  Loses game:     	White=3     	Black=1      Missed win:     	White=1     	Black=2      Mistake:       	White=2     	Black=2      Inaccurate:     	White=2     	Black=1      OK:         	White=28    	Black=41     Best:        	White=1     	Black=2      Strong:       	White=2     	Black=1} 0-1

[Event "CCT Chesscom Classic-D2 2024"]
[Site "Online"]
[Date "2024.05.12"]
[Round "3"]
[White "Vachier-Lagrave, Maxime"]
[Black "Dubov, Daniil"]
[Result "1-0"]
[ECO "C55"]
[WhiteElo "2732"]
[BlackElo "2707"]
[Annotator "TA"]
[PlyCount "119"]
[EventDate "2024.05.08"]
[EventType "k.o."]
[EventCountry "NET"]
[SourceTitle "playchess.com"]
[Source "ChessBase"]
[SourceQuality "1"]
[TimeControl "600+2"]

{[%evp 38,119,64,53,60,7,25,17,16,16,45,21,51,25,27,28,110,101,114,113,112,71,71,71,71,71,110,82,99,71,71,56,64,8,8,8,13,13,14,8,21,8,8,8,8,8,8,8,8,8,8,8,8,8,8,8,8,8,8,8,8,8,11,8,32,32,29958,29960,29973,29974,29974,29975,29978,29979,29978,29972,29972,29973,29973,29974,29972,29974,29987,29974]} 1. e4 {[%emt 0:00:09]} e5 {[%emt 0:00:09]} 2. Nf3 {[%emt 0:00:06]} Nc6 {[%emt 0:00:01]} 3. Bc4 {[%emt 0:00:01]} Nf6 {[%emt 0:00:02]} 4. d3 {[%emt 0:00:01]} Be7 {[%emt 0:00:01]} 5. O-O {[%emt 0:00:02]} O-O {[%emt 0:00:02]} 6. Re1 {[%emt 0:00:01]} d6 {[%emt 0:00:01]} 7. a3 {[%emt 0:00:07]} Be6 {[%emt 0:00:09] C55: Two Knights: 4 d3, 4 d4 exd4 5 e5 and Max Lange Attack.} 8. Nc3 {[%emt 0:00:01]} Bxc4 {[%emt 0:00:06]} 9. dxc4 {[%emt 0:00:00]} a5 {[%emt 0:00:00]} 10. Qd3 {[%emt 0:00:19]} b6 $146 {[%emt 0:00:07]} ({Predecessor:} 10... Nd7 11. Be3 Re8 12. Nd5 h6 13. b4 Bf8 14. b5 Ne7 15. Rab1 Nc8 16. Qb3 Re6 {1-0 Sternik,R (1717)-Pech,J (644) FICGS theme 0001 email 2012 (1)}) 11. Nd5 {[%emt 0:00:06]} Nxd5 {[%emt 0:00:09]} 12. cxd5 {[%emt 0:00:04]} Nb8 {[%emt 0:00:01]} 13. Be3 {[%emt 0:00:06]} Nd7 {[%emt 0:00:02]} 14. b4 {[%emt 0:00:02]} h6 {[%emt 0:00:11]} 15. c4 {[%emt 0:00:04]} Re8 {[%emt 0:00:17]} 16. g3 {[%emt 0:00:09]} Bf8 {[%emt 0:00:13]} 17. Nd2 {[%emt 0:00:14]} Be7 {[%emt 0:00:11]} 18. h4 {[%emt 0:00:03]} Rf8 {[%emt 0:00:05]} 19. Nb3 {[%emt 0:00:16]} axb4 {[%emt 0:00:50]} 20. axb4 {[%emt 0:00:02]} Nf6 {[%emt 0:00:01]} 21. c5 {[%emt 0:00:15]} (21. Kg2 $14) 21... Rxa1 {[%emt 0:00:23]} (21... bxc5 {looks sharper.} 22. bxc5 Qd7 23. cxd6 Bxd6 24. Kg2 Qg4) 22. Rxa1 {[%emt 0:00:01]} bxc5 {[%emt 0:00:02]} 23. bxc5 {[%emt 0:00:01]} Ng4 {[%emt 0:00:01]} 24. Kg2 {[%emt 0:00:39]} Nxe3+ {[%emt 0:01:55]} 25. Qxe3 {[%emt 0:00:01]} dxc5 {[%emt 0:00:01]} 26. Nxc5 {[%emt 0:00:02]} c6 {[%emt 0:01:21]} (26... Bd6 $11 {remains equal.}) 27. dxc6 $16 {[%emt 0:01:08]} Qd6 {[%emt 0:00:04]} 28. Nd7 {[%emt 0:00:06]} Rc8 {[%emt 0:00:05]} 29. Rc1 {[%emt 0:01:17]} Rxc6 {[%emt 0:00:03]} 30. Rxc6 {[%emt 0:00:00]} Qxc6 {[%emt 0:00:01]} 31. Nxe5 {[%emt 0:00:00]} Qb5 {[%emt 0:00:47]} 32. Nd3 {[%emt 0:00:13]} h5 {[%emt 0:00:10]} 33. Nf4 {[%emt 0:00:04]} Qe5 {[%emt 0:00:34]} 34. Qd3 {[%emt 0:00:18]} Bxh4 {[%emt 0:00:26]} 35. Qd5 {[%emt 0:00:01]} (35. Qf3 $1 $14 Bg5 36. Nxh5) 35... Qxd5 $11 {[%emt 0:00:27]} 36. exd5 {[%emt 0:00:01]} Be7 {[%emt 0:00:10]} 37. Nxh5 {[%emt 0:00:01]} f5 {[%emt 0:00:02]} 38. Nf4 {[%emt 0:00:05]} Kf7 {[%emt 0:00:04]} 39. Kf3 {[%emt 0:00:04]} g5 {[%emt 0:00:31]} 40. Nd3 {[%emt 0:00:01]} g4+ {[%emt 0:00:05]} 41. Ke3 {[%emt 0:00:01]} (41. Kf4 $5 Kf6 $8 42. Ke3 $14 (42. Ne5 $2 Bd6 $19)) 41... Bd6 {[%emt 0:00:23]} 42. Kd4 {[%emt 0:00:06]} Kf6 {[%emt 0:00:08]} 43. Kc4 {[%emt 0:00:09]} Ke7 {[%emt 0:00:23]} 44. Nc5 {[%emt 0:01:30]} Bb8 {[%emt 0:00:28]} 45. Ne6 {[%emt 0:00:02]} Kd7 $1 {[%emt 0:00:11]} 46. Ng7 {[%emt 0:01:00]} f4 {[%emt 0:00:02]} 47. Nh5 {[%emt 0:00:00]} fxg3 {[%emt 0:00:05]} 48. fxg3 {[%emt 0:00:00]} Kd6 {[%emt 0:00:03]} 49. Kd4 {[%emt 0:00:02]} Ba7+ {[%emt 0:00:01]} 50. Ke4 {[%emt 0:00:03]} Bf2 {[%emt 0:00:01]} 51. Ng7 {[%emt 0:00:01]} Be1 $2 {[%emt 0:00:03][%mdl 8192]} (51... Ke7 $14) 52. Nf5+ {[%emt 0:00:01]} Kc5 {[%emt 0:00:04]} 53. Ke5 {[%emt 0:00:02]} Kc4 {[%emt 0:00:02]} 54. d6 {[%emt 0:00:02]} Kd3 {[%emt 0:00:01]} 55. d7 {[%emt 0:00:14]} Ba5 {[%emt 0:00:02]} 56. Ke6 {[%emt 0:00:01]} Ke4 {[%emt 0:00:03]} 57. Ng7 {[%emt 0:00:04]} Bc7 {[%emt 0:00:04]} 58. Nh5 {[%emt 0:00:04]} Bd8 {[%emt 0:00:02]} 59. Kf7 {[%emt 0:00:00]} Bg5 {[%emt 0:00:02]} 60. Ke8 {[%emt 0:00:04]} 1-0

[Event "CCT Chesscom Classic-D2 2024"]
[Site "Online"]
[Date "2024.05.12"]
[Round "3"]
[White "Dubov, Daniil"]
[Black "Vachier-Lagrave, Maxime"]
[Result "1/2-1/2"]
[ECO "D85"]
[WhiteElo "2707"]
[BlackElo "2732"]
[Annotator "TA"]
[PlyCount "102"]
[EventDate "2024.05.08"]
[EventType "k.o."]
[EventCountry "NET"]
[SourceTitle "playchess.com"]
[Source "ChessBase"]
[SourceQuality "1"]
[TimeControl "600+2"]

{[%evp 79,102,0,0,0,0,0,0,0,0,0,0,0,44,0,44,0,0,0,0,0,0,0,0,0,7]} 1. d4 {[%emt 0:00:02]} Nf6 {[%emt 0:00:03]} 2. c4 {[%emt 0:00:02]} g6 {[%emt 0:00:01]} 3. Nc3 {[%emt 0:00:01]} d5 {[%emt 0:00:00]} 4. cxd5 {[%emt 0:00:01]} Nxd5 {[%emt 0:00:00]} 5. e4 {[%emt 0:00:01]} Nxc3 {[%emt 0:00:01]} 6. bxc3 {[%emt 0:00:00]} Bg7 {[%emt 0:00:00]} 7. Nf3 {[%emt 0:00:02]} c5 {[%emt 0:00:01]} 8. Bb5+ {[%emt 0:00:01]} Nc6 {[%emt 0:00:01]} 9. O-O {[%emt 0:00:01]} O-O {[%emt 0:00:01]} 10. Bxc6 {[%emt 0:00:01]} bxc6 {[%emt 0:00:00]} 11. Qc2 {[%emt 0:00:00]} Qa5 {[%emt 0:00:13]} 12. a4 {[%emt 0:00:03]} cxd4 {[%emt 0:00:18]} 13. cxd4 {[%emt 0:00:02]} Bg4 {[%emt 0:00:02]} 14. Ne5 {[%emt 0:00:02]} Bxe5 {[%emt 0:00:02]} 15. dxe5 {[%emt 0:00:00]} Rfd8 {[%emt 0:00:40]} 16. h3 {[%emt 0:00:21]} Be6 {[%emt 0:00:03]} 17. Be3 {[%emt 0:01:20]} Rab8 {[%emt 0:01:20]} 18. Qc5 {[%emt 0:00:44]} Qxc5 {[%emt 0:00:06]} 19. Bxc5 {[%emt 0:00:02]} Rd7 {[%emt 0:00:09]} 20. Rfd1 {[%emt 0:00:27]} Rbd8 {[%emt 0:00:54]} 21. Rxd7 {[%emt 0:00:05]} Rxd7 {[%emt 0:00:00]} 22. Rb1 {[%emt 0:00:07]} f6 {[%emt 0:00:09]} 23. exf6 {[%emt 0:00:27]} exf6 {[%emt 0:00:00]} 24. Rb8+ {[%emt 0:00:03]} Kf7 {[%emt 0:00:03]} 25. Rf8+ {[%emt 0:00:17]} Kg7 {[%emt 0:00:01]} 26. Ra8 {[%emt 0:00:00]} g5 {[%emt 0:01:44]} 27. Rxa7 {[%emt 0:01:25]} Rxa7 {[%emt 0:00:02]} 28. Bxa7 {[%emt 0:00:00]} h5 {[%emt 0:00:01]} 29. a5 {[%emt 0:02:52]} Bc4 {[%emt 0:00:02]} 30. f3 {[%emt 0:00:43]} h4 {[%emt 0:00:09]} 31. Kf2 {[%emt 0:00:09]} Kf7 {[%emt 0:00:13]} 32. Bc5 {[%emt 0:00:14]} Ke6 {[%emt 0:00:02]} 33. Ke3 {[%emt 0:00:12]} f5 {[%emt 0:00:39]} 34. Kd4 {[%emt 0:01:01]} Bf1 {[%emt 0:00:02]} 35. e5 {[%emt 0:00:01]} Ba6 {[%emt 0:01:00]} 36. Bb6 {[%emt 0:00:15]} Kd7 {[%emt 0:00:22]} 37. Kc5 {[%emt 0:00:07]} Bf1 {[%emt 0:00:10]} 38. e6+ {[%emt 0:00:03]} Ke7 {[%emt 0:00:01]} 39. Bc7 {[%emt 0:00:02]} f4 {[%emt 0:00:16]} 40. Be5 {[%emt 0:00:03]} Kxe6 {[%emt 0:00:02]} 41. Bc7 {[%emt 0:00:01]} Kf5 {[%emt 0:00:08]} 42. Bd8 {[%emt 0:00:01]} (42. Kxc6 $2 Bxg2 43. Kb5 Bxf3 $19 (43... Bxh3 $2 44. Kb4 $19)) 42... Kg6 $1 {[%emt 0:00:01]} (42... Bxg2 43. a6 (43. Kxc6 $2 Bxf3+ 44. Kb5 Bg2 $19) 43... Bxf3 44. a7 $18) 43. Be7 {[%emt 0:00:02]} (43. Kxc6 $2 Bxg2 44. Bb6 Bxf3+ (44... Bxh3 $2 45. Kd5 $19) 45. Kb5 Bg2 $19) 43... Kf5 {[%emt 0:00:01]} (43... Bxg2 44. a6 (44. Kxc6 $2 Bxf3+ 45. Kc7 Bg2 $19) 44... Kf7 45. Bxg5 $18 (45. a7 Kxe7 46. a8=Q Bxf3 $18)) 44. Bd8 {[%emt 0:00:01]} (44. Kxc6 $2 Bxg2 45. Kb5 Bxf3 $19 (45... Bxh3 $2 46. Bc5 $19)) 44... Kg6 $1 {[%emt 0:00:00]} (44... Bxg2 $2 45. a6 (45. Kxc6 $2 Bxf3+ 46. Kd6 Bg2 $19) 45... Bxf3 46. a7 $18) 45. Bc7 {[%emt 0:00:03]} (45. Kxc6 Bxg2 46. Bb6 Bxf3+ (46... Bxh3 $2 47. Kd5 $19) 47. Kb5 Bg2 $19) 45... Kf5 {[%emt 0:00:02]} (45... Bxg2 46. a6 (46. Kxc6 $2 Bxf3+ 47. Kd6 Bg2 $19) 46... Bxh3 47. a7 $18 (47. Kxc6 $2 Bg2 $19)) 46. Bd6 {[%emt 0:00:00]} (46. Kxc6 $2 Bxg2 47. Kb5 Bxf3 $19 (47... Bxh3 $2 48. Kb4 $19)) 46... Kg6 {[%emt 0:00:00]} (46... Bxg2 $2 47. a6 (47. Kxc6 $2 Bxf3+ 48. Kd7 Bg2 $19) 47... Bxh3 48. a7 $18 (48. Kxc6 $2 Bg2 $19)) 47. Be5 {[%emt 0:00:01]} (47. Kxc6 $2 Bxg2 48. Kc7 Bxf3 $19 (48... Bxh3 $2 49. Bc5 $19)) 47... Kf5 {[%emt 0:00:01]} (47... Bxg2 $2 48. a6 (48. Kxc6 $2 Bxf3+ 49. Kd6 Bg2 $19) 48... Bxf3 49. a7 $18) 48. Bc3 {[%emt 0:00:01]} Kg6 {[%emt 0:00:02]} (48... Bxg2 $2 49. a6 (49. Kxc6 $2 Bxf3+ 50. Kc5 Bg2 $19) 49... Bxf3 50. a7 $18) 49. Be5 {[%emt 0:00:04]} (49. Kxc6 $2 Bxg2 50. Kd5 Bxf3+ (50... Bxh3 $2 51. Bd4 $19) 51. Ke5 Bg2 $19) 49... Kf5 {[%emt 0:00:01]} (49... Bxg2 $2 50. a6 (50. Kxc6 $2 Bxf3+ 51. Kc5 Bg2 $19) 50... Bxh3 51. a7 $18 (51. Kxc6 $2 Bg2 $19)) 50. Bb8 {[%emt 0:00:01]} Kg6 {[%emt 0:00:01]} (50... Bxg2 $2 51. a6 (51. Kxc6 $2 Bxf3+ 52. Kd7 Bg2 $19) 51... Bxf3 52. a7 $18) 51. Bc7 {[%emt 0:00:00]} (51. Kxc6 $2 {loses.} Bxg2 52. a6 Bxf3+ (52... Bxh3 $2 53. Kd6 $19) 53. Kc5 Kf5 $19) 51... Kf5 {[%emt 0:00:00]} (51... Bxg2 52. a6 (52. Kxc6 $2 {too greedy.} Bxf3+ 53. Kd6 Bg2 $19) 52... Bxf3 53. a7 $18) 1/2-1/2